[Event "*** Titled Tuesday Blitz"]
[Site "Chess.com"]
[Date "2021.03.30"]
[Round "10"]
[White "MatyChess1"]
[Black "scandalgod"]
[Result "1/2-1/2"]
[WhiteElo "2609"]
[BlackElo "2483"]
[TimeControl "180+1"]
[EndTime "11:59:42 PDT"]
[Termination "Game drawn - insufficient material"]

1. e4 {[%clk 0:03:00.9]} 1... e5 {[%clk 0:02:57.5]} 2. Nf3 {[%clk 0:03:01.4]}
2... Nc6 {[%clk 0:02:53.9]} 3. Bc4 {[%clk 0:03:01]} 3... Nf6 {[%clk 0:02:53.6]}
4. d3 {[%clk 0:03:01]} 4... Be7 {[%clk 0:02:53.7]} 5. O-O {[%clk 0:03:00.7]}
5... O-O {[%clk 0:02:53.5]} 6. Re1 {[%clk 0:03:01.2]} 6... d6 {[%clk 0:02:50.4]}
7. a4 {[%clk 0:03:00.3]} 7... Na5 {[%clk 0:02:45.4]} 8. Ba2 {[%clk 0:02:59.7]}
8... c5 {[%clk 0:02:40.5]} 9. c3 {[%clk 0:02:58]} 9... Nc6 {[%clk 0:02:38.6]}
10. Na3 {[%clk 0:02:55.1]} 10... h6 {[%clk 0:02:35.3]} 11. h3 {[%clk 0:02:54.1]}
11... Re8 {[%clk 0:02:32.8]} 12. Bd2 {[%clk 0:02:54.2]} 12... Bf8 {[%clk
0:02:28.4]} 13. b4 {[%clk 0:02:45.1]} 13... cxb4 {[%clk 0:02:17.6]} 14. cxb4
{[%clk 0:02:45.2]} 14... a6 {[%clk 0:02:13.4]} 15. Nc2 {[%clk 0:02:18.5]} 15...
Be6 {[%clk 0:02:08.4]} 16. Bxe6 {[%clk 0:02:15.9]} 16... Rxe6 {[%clk 0:02:08.4]}
17. b5 {[%clk 0:02:13.3]} 17... Ne7 {[%clk 0:02:04.6]} 18. Ne3 {[%clk
0:01:38.9]} 18... d5 {[%clk 0:01:58.3]} 19. exd5 {[%clk 0:01:33.6]} 19... Nexd5
{[%clk 0:01:55.9]} 20. Nc4 {[%clk 0:01:33.1]} 20... e4 {[%clk 0:01:51.2]} 21.
Nd4 {[%clk 0:01:23.3]} 21... Re8 {[%clk 0:01:47.8]} 22. bxa6 {[%clk 0:01:03.7]}
22... Rxa6 {[%clk 0:01:41]} 23. a5 {[%clk 0:00:54.8]} 23... Nb4 {[%clk 0:01:32]}
24. Bc3 {[%clk 0:00:36.5]} 24... Nxd3 {[%clk 0:01:25.7]} 25. Re2 {[%clk
0:00:34]} 25... Bc5 {[%clk 0:01:15.3]} 26. Nf5 {[%clk 0:00:28.2]} 26... Rae6
{[%clk 0:01:05.2]} 27. Rb1 {[%clk 0:00:19.9]} 27... Qd5 {[%clk 0:01:00.3]} 28.
Nce3 {[%clk 0:00:18]} 28... Bxe3 {[%clk 0:00:58.6]} 29. Nxe3 {[%clk 0:00:18.9]}
29... Qg5 {[%clk 0:00:51.5]} 30. Rc2 {[%clk 0:00:19.5]} 30... Nf4 {[%clk
0:00:46]} 31. Kh1 {[%clk 0:00:19.8]} 31... N6d5 {[%clk 0:00:44.7]} 32. Bd4
{[%clk 0:00:18.1]} 32... Nxe3 {[%clk 0:00:42.5]} 33. fxe3 {[%clk 0:00:18.8]}
33... Nd3 {[%clk 0:00:35.9]} 34. Rxb7 {[%clk 0:00:18.1]} 34... Qxa5 {[%clk
0:00:30.1]} 35. Qg4 {[%clk 0:00:15.9]} 35... Qg5 {[%clk 0:00:25.2]} 36. Qxg5
{[%clk 0:00:11.8]} 36... hxg5 {[%clk 0:00:26.1]} 37. Rcc7 {[%clk 0:00:12.5]}
37... Rf8 {[%clk 0:00:21.7]} 38. Ra7 {[%clk 0:00:11.3]} 38... Rd6 {[%clk
0:00:18]} 39. Kh2 {[%clk 0:00:10.4]} 39... Re6 {[%clk 0:00:17.9]} 40. Kg3 {[%clk
0:00:10.3]} 40... Ne5 {[%clk 0:00:17.3]} 41. Bc5 {[%clk 0:00:07.4]} 41... Nc6
{[%clk 0:00:10.8]} 42. Bxf8 {[%clk 0:00:05]} 42... Nxa7 {[%clk 0:00:10.4]} 43.
Bxg7 {[%clk 0:00:04]} 43... Kxg7 {[%clk 0:00:09.5]} 44. Rxa7 {[%clk 0:00:03.6]}
44... Kg6 {[%clk 0:00:09.9]} 45. Kg4 {[%clk 0:00:03.8]} 45... Rd6 {[%clk
0:00:08.8]} 46. Ra5 {[%clk 0:00:03.4]} 46... Rd2 {[%clk 0:00:08.5]} 47. Rxg5+
{[%clk 0:00:02.8]} 47... Kf6 {[%clk 0:00:07.9]} 48. Rf5+ {[%clk 0:00:03.2]}
48... Kg6 {[%clk 0:00:08.2]} 49. Rg5+ {[%clk 0:00:03.4]} 49... Kf6 {[%clk
0:00:08.5]} 50. Kh4 {[%clk 0:00:03.9]} 50... Re2 {[%clk 0:00:07.9]} 51. Rg3
{[%clk 0:00:04.2]} 51... Ke5 {[%clk 0:00:06.4]} 52. Kg4 {[%clk 0:00:04.8]} 52...
f5+ {[%clk 0:00:06.5]} 53. Kh4 {[%clk 0:00:04.3]} 53... f4 {[%clk 0:00:06]} 54.
exf4+ {[%clk 0:00:05.2]} 54... Kxf4 {[%clk 0:00:06.4]} 55. Rg4+ {[%clk
0:00:05.7]} 55... Kf5 {[%clk 0:00:06.7]} 56. g3 {[%clk 0:00:06]} 56... Rf2
{[%clk 0:00:06.5]} 57. Rg8 {[%clk 0:00:06.3]} 57... e3 {[%clk 0:00:06.7]} 58.
Rf8+ {[%clk 0:00:06.7]} 58... Ke4 {[%clk 0:00:07.2]} 59. Re8+ {[%clk 0:00:07.3]}
59... Kf3 {[%clk 0:00:07.5]} 60. g4 {[%clk 0:00:08.2]} 60... e2 {[%clk
0:00:07.1]} 61. Kg5 {[%clk 0:00:08.6]} 61... Rf1 {[%clk 0:00:07.4]} 62. h4
{[%clk 0:00:08.5]} 62... e1=Q {[%clk 0:00:07.7]} 63. Rxe1 {[%clk 0:00:08.8]}
63... Rxe1 {[%clk 0:00:08.6]} 64. h5 {[%clk 0:00:09.3]} 64... Ke4 {[%clk
0:00:08.3]} 65. Kg6 {[%clk 0:00:08.7]} 65... Ke5 {[%clk 0:00:08.4]} 66. g5
{[%clk 0:00:09.2]} 66... Ke6 {[%clk 0:00:08.5]} 67. h6 {[%clk 0:00:09.6]} 67...
Rh1 {[%clk 0:00:08]} 68. h7 {[%clk 0:00:07.6]} 68... Ke7 {[%clk 0:00:06.3]} 69.
Kg7 {[%clk 0:00:08.1]} 69... Ke6 {[%clk 0:00:04.9]} 70. g6 {[%clk 0:00:07.2]}
70... Kf5 {[%clk 0:00:04.9]} 71. Kf7 {[%clk 0:00:05.4]} 71... Kg5 {[%clk
0:00:02.1]} 72. Kg7 {[%clk 0:00:05.3]} 72... Kf5 {[%clk 0:00:01.8]} 73. Kf7
{[%clk 0:00:05.8]} 73... Kg5 {[%clk 0:00:02.1]} 74. g7 {[%clk 0:00:03.1]} 74...
Rxh7 {[%clk 0:00:01.5]} 75. Kf8 {[%clk 0:00:04]} 75... Rxg7 {[%clk 0:00:01.8]}
76. Kxg7 {[%clk 0:00:04.9]} 1/2-1/2

[Event "*** Titled Tuesday Blitz"]
[Site "Chess.com"]
[Date "2021.03.30"]
[Round "10"]
[White "SilviusTiberius"]
[Black "Kale36"]
[Result "1-0"]
[WhiteElo "2564"]
[BlackElo "2410"]
[TimeControl "180+1"]
[EndTime "11:59:43 PDT"]
[Termination "SilviusTiberius won on time"]

1. e4 {[%clk 0:03:00.9]} 1... Nc6 {[%clk 0:02:59.6]} 2. Nf3 {[%clk 0:03:00.4]}
2... d6 {[%clk 0:02:59.8]} 3. d4 {[%clk 0:02:58.5]} 3... g6 {[%clk 0:02:59.9]}
4. Nc3 {[%clk 0:02:57.7]} 4... Bg7 {[%clk 0:03:00.2]} 5. Be3 {[%clk 0:02:58.2]}
5... Nf6 {[%clk 0:02:59.8]} 6. Qd2 {[%clk 0:02:58]} 6... O-O {[%clk 0:02:59.5]}
7. d5 {[%clk 0:02:54]} 7... Ne5 {[%clk 0:02:56.6]} 8. Nxe5 {[%clk 0:02:53.3]}
8... dxe5 {[%clk 0:02:57.5]} 9. O-O-O {[%clk 0:02:43.7]} 9... Ng4 {[%clk
0:02:51]} 10. Be2 {[%clk 0:02:41.2]} 10... Nxe3 {[%clk 0:02:50.4]} 11. Qxe3
{[%clk 0:02:42.1]} 11... a6 {[%clk 0:02:45.2]} 12. g4 {[%clk 0:02:37.9]} 12...
Qd6 {[%clk 0:02:43.6]} 13. h4 {[%clk 0:02:36.1]} 13... b5 {[%clk 0:02:35.7]} 14.
Rdg1 {[%clk 0:02:33.9]} 14... Qf6 {[%clk 0:02:34.5]} 15. Kb1 {[%clk 0:02:27.2]}
15... b4 {[%clk 0:02:11.6]} 16. Na4 {[%clk 0:02:23.5]} 16... Qf4 {[%clk
0:02:02.5]} 17. Qd3 {[%clk 0:02:16.3]} 17... Bd7 {[%clk 0:01:52.7]} 18. Nc5
{[%clk 0:02:07.3]} 18... Bb5 {[%clk 0:01:52.2]} 19. Qf3 {[%clk 0:02:03.8]} 19...
Qxf3 {[%clk 0:01:34.4]} 20. Bxf3 {[%clk 0:02:04.7]} 20... a5 {[%clk 0:01:33.4]}
21. g5 {[%clk 0:02:02.7]} 21... Rfd8 {[%clk 0:01:27.4]} 22. h5 {[%clk
0:02:00.9]} 22... c6 {[%clk 0:01:27.5]} 23. h6 {[%clk 0:01:44.1]} 23... Bf8
{[%clk 0:01:26.9]} 24. Rd1 {[%clk 0:01:36.3]} 24... e6 {[%clk 0:01:23.6]} 25.
Nd3 {[%clk 0:01:12.3]} 25... exd5 {[%clk 0:01:08.9]} 26. exd5 {[%clk 0:01:07.4]}
26... Bxd3 {[%clk 0:00:57.2]} 27. Rxd3 {[%clk 0:01:08.3]} 27... c5 {[%clk
0:00:57.8]} 28. c4 {[%clk 0:00:49.7]} 28... bxc3 {[%clk 0:00:55.8]} 29. Rxc3
{[%clk 0:00:49.5]} 29... Bd6 {[%clk 0:00:55.6]} 30. Be4 {[%clk 0:00:49.3]} 30...
Rab8 {[%clk 0:00:55.1]} 31. Rhh3 {[%clk 0:00:49.6]} 31... Rb4 {[%clk 0:00:54.4]}
32. f3 {[%clk 0:00:46.5]} 32... Rdb8 {[%clk 0:00:54.4]} 33. Rh2 {[%clk
0:00:46.7]} 33... Kf8 {[%clk 0:00:53.7]} 34. a3 {[%clk 0:00:42.9]} 34... Rd4
{[%clk 0:00:52.4]} 35. Kc2 {[%clk 0:00:39.3]} 35... Ke7 {[%clk 0:00:52.1]} 36.
Rg2 {[%clk 0:00:38.5]} 36... Kd7 {[%clk 0:00:51.6]} 37. b3 {[%clk 0:00:30.5]}
37... Be7 {[%clk 0:00:51.5]} 38. Rc4 {[%clk 0:00:21.1]} 38... Kd6 {[%clk
0:00:49.6]} 39. Kc3 {[%clk 0:00:20.7]} 39... Rf8 {[%clk 0:00:35.1]} 40. Rxd4
{[%clk 0:00:11.6]} 40... exd4+ {[%clk 0:00:34.8]} 41. Kc4 {[%clk 0:00:11.7]}
41... Rb8 {[%clk 0:00:33.3]} 42. Bc2 {[%clk 0:00:12]} 42... Ke5 {[%clk
0:00:32.7]} 43. Re2+ {[%clk 0:00:11.4]} 43... Kd6 {[%clk 0:00:32.2]} 44. f4
{[%clk 0:00:12]} 44... Rb6 {[%clk 0:00:22.7]} 45. Bd3 {[%clk 0:00:11.7]} 45...
Rb8 {[%clk 0:00:21.5]} 46. Be4 {[%clk 0:00:11.5]} 46... Re8 {[%clk 0:00:20.5]}
47. Bf3 {[%clk 0:00:11.8]} 47... Rb8 {[%clk 0:00:19.4]} 48. Bg4 {[%clk
0:00:12.2]} 48... Rb6 {[%clk 0:00:18.7]} 49. Rc2 {[%clk 0:00:11.7]} 49... Rb8
{[%clk 0:00:18.2]} 50. Re2 {[%clk 0:00:11.7]} 50... Rb6 {[%clk 0:00:18.1]} 51.
Bh3 {[%clk 0:00:12.2]} 51... Rb8 {[%clk 0:00:17.9]} 52. Rd2 {[%clk 0:00:11.6]}
52... Re8 {[%clk 0:00:16.6]} 53. Re2 {[%clk 0:00:11.9]} 53... Rb8 {[%clk
0:00:16.4]} 54. Bg2 {[%clk 0:00:12.3]} 54... Rb6 {[%clk 0:00:14.7]} 55. Be4
{[%clk 0:00:11.9]} 55... Rb8 {[%clk 0:00:14.7]} 56. Bc2 {[%clk 0:00:12.4]} 56...
Rb6 {[%clk 0:00:14.9]} 57. Kd3 {[%clk 0:00:12.9]} 57... Rb8 {[%clk 0:00:15.1]}
58. Re5 {[%clk 0:00:13.4]} 58... Rb6 {[%clk 0:00:13.9]} 59. Ke4 {[%clk
0:00:13.8]} 59... Rb8 {[%clk 0:00:13.7]} 60. f5 {[%clk 0:00:14.3]} 60... Bxg5
{[%clk 0:00:12.9]} 61. fxg6 {[%clk 0:00:14.2]} 61... hxg6 {[%clk 0:00:12.4]} 62.
Rxg5 {[%clk 0:00:13.3]} 62... Rh8 {[%clk 0:00:10.3]} 63. b4 {[%clk 0:00:09.8]}
63... axb4 {[%clk 0:00:08.9]} 64. axb4 {[%clk 0:00:10.7]} 64... cxb4 {[%clk
0:00:09.2]} 65. Kxd4 {[%clk 0:00:10.6]} 65... Rxh6 {[%clk 0:00:10.1]} 66. Rg4
{[%clk 0:00:10.7]} 66... f5 {[%clk 0:00:09.4]} 67. Rf4 {[%clk 0:00:09.5]} 67...
Rh2 {[%clk 0:00:07.7]} 68. Bb3 {[%clk 0:00:09.6]} 68... Rd2+ {[%clk 0:00:07.1]}
69. Kc4 {[%clk 0:00:09.6]} 69... Ke5 {[%clk 0:00:05.9]} 70. Rf3 {[%clk
0:00:09.1]} 70... g5 {[%clk 0:00:06.1]} 71. Kxb4 {[%clk 0:00:09.4]} 71... g4
{[%clk 0:00:06.4]} 72. Rf1 {[%clk 0:00:08.5]} 72... f4 {[%clk 0:00:06.5]} 73.
Kc3 {[%clk 0:00:09.1]} 73... Rh2 {[%clk 0:00:01.4]} 74. Re1+ {[%clk 0:00:08.4]}
74... Kf6 {[%clk 0:00:01.3]} 75. d6 {[%clk 0:00:08.4]} 75... f3 {[%clk
0:00:02.2]} 76. d7 {[%clk 0:00:08.6]} 76... Rh8 {[%clk 0:00:02.3]} 77. Re8
{[%clk 0:00:08.1]} 77... Rh1 {[%clk 0:00:01.6]} 78. d8=Q+ {[%clk 0:00:08]} 1-0

[Event "*** Titled Tuesday Blitz"]
[Site "Chess.com"]
[Date "2021.03.30"]
[Round "10"]
[White "biveklama"]
[Black "Aradhya2000"]
[Result "0-1"]
[WhiteElo "2379"]
[BlackElo "2591"]
[TimeControl "180+1"]
[EndTime "11:59:45 PDT"]
[Termination "Aradhya2000 won on time"]

1. e4 {[%clk 0:03:00.9]} 1... e5 {[%clk 0:02:59.6]} 2. Nf3 {[%clk 0:03:00.5]}
2... Nc6 {[%clk 0:02:58.9]} 3. Bc4 {[%clk 0:02:59.5]} 3... Nf6 {[%clk
0:02:58.6]} 4. d3 {[%clk 0:02:57.7]} 4... Bc5 {[%clk 0:02:58.6]} 5. c3 {[%clk
0:02:47]} 5... O-O {[%clk 0:02:57.3]} 6. O-O {[%clk 0:02:45.1]} 6... d6 {[%clk
0:02:54.4]} 7. Nbd2 {[%clk 0:02:33.9]} 7... a5 {[%clk 0:02:53.3]} 8. Re1 {[%clk
0:02:24.1]} 8... Ba7 {[%clk 0:02:15.7]} 9. Nf1 {[%clk 0:02:19.9]} 9... Ne7
{[%clk 0:02:14.9]} 10. Nh4 {[%clk 0:02:07.3]} 10... Ng6 {[%clk 0:02:14.2]} 11.
Nxg6 {[%clk 0:02:07]} 11... hxg6 {[%clk 0:02:14.2]} 12. Be3 {[%clk 0:02:04.2]}
12... c6 {[%clk 0:02:03.9]} 13. Bb3 {[%clk 0:01:57.3]} 13... Re8 {[%clk
0:01:58.3]} 14. Bxa7 {[%clk 0:01:50.3]} 14... Rxa7 {[%clk 0:01:59.2]} 15. Qf3
{[%clk 0:01:48.9]} 15... b5 {[%clk 0:01:56.3]} 16. h3 {[%clk 0:01:42.8]} 16...
Rd7 {[%clk 0:01:48.7]} 17. Ng3 {[%clk 0:01:26.1]} 17... d5 {[%clk 0:01:46.3]}
18. exd5 {[%clk 0:01:11.3]} 18... a4 {[%clk 0:01:44.2]} 19. Bc2 {[%clk
0:00:48.3]} 19... cxd5 {[%clk 0:01:43.7]} 20. d4 {[%clk 0:00:30.3]} 20... e4
{[%clk 0:01:38.9]} 21. Qe2 {[%clk 0:00:29.6]} 21... Qb6 {[%clk 0:01:36.6]} 22.
a3 {[%clk 0:00:29.3]} 22... Rde7 {[%clk 0:01:31]} 23. Rad1 {[%clk 0:00:26.4]}
23... Nh7 {[%clk 0:01:22.6]} 24. f3 {[%clk 0:00:19.6]} 24... Qd6 {[%clk
0:01:18.3]} 25. Nxe4 {[%clk 0:00:15.6]} 25... dxe4 {[%clk 0:01:18]} 26. fxe4
{[%clk 0:00:16.2]} 26... Bd7 {[%clk 0:01:14.3]} 27. e5 {[%clk 0:00:15.7]} 27...
Qb6 {[%clk 0:01:11.1]} 28. Qf2 {[%clk 0:00:15.3]} 28... Nf8 {[%clk 0:01:01]} 29.
Rf1 {[%clk 0:00:14.3]} 29... f6 {[%clk 0:00:57]} 30. exf6 {[%clk 0:00:13.4]}
30... gxf6 {[%clk 0:00:57.1]} 31. Qxf6 {[%clk 0:00:14.1]} 31... Qxf6 {[%clk
0:00:56.6]} 32. Rxf6 {[%clk 0:00:15]} 32... Re6 {[%clk 0:00:51.8]} 33. Rf2
{[%clk 0:00:14.8]} 33... Re2 {[%clk 0:00:50.6]} 34. Rd2 {[%clk 0:00:14]} 34...
Re1+ {[%clk 0:00:50.2]} 35. Kh2 {[%clk 0:00:14]} 35... Kg7 {[%clk 0:00:44]} 36.
b3 {[%clk 0:00:14.4]} 36... axb3 {[%clk 0:00:35.8]} 37. Bxb3 {[%clk 0:00:15.3]}
37... R1e3 {[%clk 0:00:35.3]} 38. Rc2 {[%clk 0:00:13]} 38... Bf5 {[%clk
0:00:34.1]} 39. Rc1 {[%clk 0:00:12]} 39... Rc8 {[%clk 0:00:33.7]} 40. g4 {[%clk
0:00:09.9]} 40... Be6 {[%clk 0:00:33.3]} 41. d5 {[%clk 0:00:08.4]} 41... Bg8
{[%clk 0:00:33.2]} 42. Rfc2 {[%clk 0:00:08.6]} 42... Rc5 {[%clk 0:00:27.8]} 43.
Ba2 {[%clk 0:00:07.1]} 43... Bxd5 {[%clk 0:00:27.1]} 44. c4 {[%clk 0:00:06.9]}
44... Bxc4 {[%clk 0:00:26.1]} 45. Bxc4 {[%clk 0:00:07.5]} 45... bxc4 {[%clk
0:00:26.5]} 46. Rxc4 {[%clk 0:00:08.4]} 46... Rxc4 {[%clk 0:00:26.8]} 47. Rxc4
{[%clk 0:00:09.3]} 47... Rxa3 {[%clk 0:00:27.1]} 48. h4 {[%clk 0:00:09.7]} 48...
Ne6 {[%clk 0:00:26.7]} 49. Re4 {[%clk 0:00:08.9]} 49... Kf6 {[%clk 0:00:26.2]}
50. Rb4 {[%clk 0:00:08.8]} 50... Ke5 {[%clk 0:00:24.3]} 51. Rb5+ {[%clk
0:00:06.1]} 51... Kf4 {[%clk 0:00:24]} 52. Rb4+ {[%clk 0:00:06.5]} 52... Kf3
{[%clk 0:00:23]} 53. h5 {[%clk 0:00:06.1]} 53... Ra2+ {[%clk 0:00:19.2]} 54. Kg1
{[%clk 0:00:06.6]} 54... g5 {[%clk 0:00:17.9]} 55. h6 {[%clk 0:00:05.3]} 55...
Nf4 {[%clk 0:00:17.8]} 56. Rb3+ {[%clk 0:00:03.2]} 56... Kxg4 {[%clk 0:00:17.5]}
57. h7 {[%clk 0:00:03.8]} 57... Ra8 {[%clk 0:00:17.5]} 58. Kf2 {[%clk
0:00:04.4]} 58... Rh8 {[%clk 0:00:17.5]} 59. Rb7 {[%clk 0:00:04.8]} 59... Kf5
{[%clk 0:00:17.5]} 60. Kg3 {[%clk 0:00:04.6]} 60... Nh5+ {[%clk 0:00:17.6]} 61.
Kf3 {[%clk 0:00:04.4]} 61... Nf6 {[%clk 0:00:18.1]} 62. Rb5+ {[%clk 0:00:03.6]}
62... Kg6 {[%clk 0:00:18.4]} 63. Kg3 {[%clk 0:00:04.3]} 63... Rxh7 {[%clk
0:00:18.9]} 64. Ra5 {[%clk 0:00:05]} 64... Rd7 {[%clk 0:00:18.6]} 65. Rc5 {[%clk
0:00:05.4]} 65... Rd3+ {[%clk 0:00:19]} 66. Kf2 {[%clk 0:00:05.4]} 66... Rd5
{[%clk 0:00:19.4]} 67. Rc6 {[%clk 0:00:05.2]} 67... Kf5 {[%clk 0:00:19.2]} 68.
Ra6 {[%clk 0:00:05.4]} 68... g4 {[%clk 0:00:19]} 69. Kg2 {[%clk 0:00:05.9]}
69... Ne4 {[%clk 0:00:18]} 70. Ra8 {[%clk 0:00:05.5]} 70... Kf4 {[%clk
0:00:18.2]} 71. Rf8+ {[%clk 0:00:05]} 71... Ke3 {[%clk 0:00:18.2]} 72. Rg8
{[%clk 0:00:05.1]} 72... Rd2+ {[%clk 0:00:17.9]} 73. Kf1 {[%clk 0:00:05.6]}
73... g3 {[%clk 0:00:17.7]} 74. Kg1 {[%clk 0:00:05]} 74... Kf3 {[%clk
0:00:14.7]} 75. Rf8+ {[%clk 0:00:05.3]} 75... Kg4 {[%clk 0:00:15]} 76. Rg8+
{[%clk 0:00:05.8]} 76... Ng5 {[%clk 0:00:15.3]} 77. Rg7 {[%clk 0:00:05]} 77...
Kf3 {[%clk 0:00:15]} 0-1

[Event "*** Titled Tuesday Blitz"]
[Site "Chess.com"]
[Date "2021.03.30"]
[Round "10"]
[White "wonderfultime"]
[Black "anon219"]
[Result "1-0"]
[WhiteElo "2993"]
[BlackElo "2855"]
[TimeControl "180+1"]
[EndTime "11:59:48 PDT"]
[Termination "wonderfultime won by resignation"]

1. d4 {[%clk 0:03:00.9]} 1... d5 {[%clk 0:02:59.6]} 2. Nf3 {[%clk 0:03:00.4]}
2... Nf6 {[%clk 0:02:59.6]} 3. Bf4 {[%clk 0:03:00.6]} 3... c5 {[%clk 0:02:59.7]}
4. c3 {[%clk 0:03:00.7]} 4... Nc6 {[%clk 0:02:57.3]} 5. e3 {[%clk 0:03:01.1]}
5... Qb6 {[%clk 0:02:56.7]} 6. Qc2 {[%clk 0:03:01.3]} 6... Bg4 {[%clk
0:02:34.2]} 7. Ne5 {[%clk 0:02:58.3]} 7... Bh5 {[%clk 0:02:27.7]} 8. Nd2 {[%clk
0:02:57]} 8... e6 {[%clk 0:02:26.8]} 9. Ndf3 {[%clk 0:02:43.7]} 9... Rc8 {[%clk
0:02:25]} 10. Qb3 {[%clk 0:02:38.5]} 10... Be7 {[%clk 0:02:20.8]} 11. Be2 {[%clk
0:02:35.8]} 11... O-O {[%clk 0:02:19.5]} 12. O-O {[%clk 0:02:35.2]} 12... Nxe5
{[%clk 0:02:17]} 13. Bxe5 {[%clk 0:02:34.9]} 13... Ne4 {[%clk 0:02:16.2]} 14.
Rfd1 {[%clk 0:02:27.1]} 14... Bd6 {[%clk 0:02:12.3]} 15. Bg3 {[%clk 0:02:16.4]}
15... Rfd8 {[%clk 0:02:10]} 16. Rac1 {[%clk 0:02:14.2]} 16... c4 {[%clk
0:02:02.4]} 17. Qxb6 {[%clk 0:02:06.9]} 17... axb6 {[%clk 0:02:03.3]} 18. a3
{[%clk 0:02:04.4]} 18... b5 {[%clk 0:02:02.7]} 19. Kf1 {[%clk 0:02:04]} 19... f6
{[%clk 0:02:02.6]} 20. Ne1 {[%clk 0:01:58]} 20... Bg6 {[%clk 0:01:56.8]} 21. Nc2
{[%clk 0:01:54.9]} 21... Nxg3+ {[%clk 0:01:52.6]} 22. hxg3 {[%clk 0:01:54.8]}
22... Bxc2 {[%clk 0:01:53.2]} 23. Rxc2 {[%clk 0:01:55.7]} 23... f5 {[%clk
0:01:51]} 24. g4 {[%clk 0:01:55.9]} 24... g6 {[%clk 0:01:51.1]} 25. gxf5 {[%clk
0:01:56.1]} 25... gxf5 {[%clk 0:01:50.3]} 26. g3 {[%clk 0:01:56.4]} 26... Kf7
{[%clk 0:01:49]} 27. Kg2 {[%clk 0:01:56.5]} 27... h6 {[%clk 0:01:45.2]} 28. Rh1
{[%clk 0:01:56.4]} 28... Kg7 {[%clk 0:01:45.7]} 29. Rcc1 {[%clk 0:01:55.2]}
29... Rh8 {[%clk 0:01:42.7]} 30. Rh5 {[%clk 0:01:55.1]} 30... Rcg8 {[%clk
0:01:42.2]} 31. Rch1 {[%clk 0:01:54.7]} 31... Bf8 {[%clk 0:01:42.4]} 32. Kf1
{[%clk 0:01:43.9]} 32... Kf6 {[%clk 0:01:42.4]} 33. Bd1 {[%clk 0:01:38.5]} 33...
Rg5 {[%clk 0:01:40.7]} 34. R5h3 {[%clk 0:01:38.5]} 34... Rgg8 {[%clk 0:01:38.6]}
35. Rh4 {[%clk 0:01:35]} 35... Rh7 {[%clk 0:01:35]} 36. g4 {[%clk 0:01:30.9]}
36... fxg4 {[%clk 0:01:28.6]} 37. Bxg4 {[%clk 0:01:31.8]} 37... Ke7 {[%clk
0:01:23.5]} 38. Ke2 {[%clk 0:01:27.5]} 38... Rf7 {[%clk 0:01:22.4]} 39. f3
{[%clk 0:01:23.6]} 39... Rf6 {[%clk 0:01:19.7]} 40. Rh5 {[%clk 0:01:16.5]} 40...
Kd6 {[%clk 0:01:19.1]} 41. R1h4 {[%clk 0:01:02.1]} 41... Rfg6 {[%clk 0:00:56]}
42. Kd1 {[%clk 0:00:46.7]} 42... Rg5 {[%clk 0:00:53.3]} 43. Ke2 {[%clk 0:00:44]}
43... Rxh5 {[%clk 0:00:52]} 44. Rxh5 {[%clk 0:00:44.9]} 44... Rg5 {[%clk
0:00:52]} 45. Rh1 {[%clk 0:00:44.6]} 45... Rg6 {[%clk 0:00:46.7]} 46. Ra1 {[%clk
0:00:37.6]} 46... h5 {[%clk 0:00:43.8]} 47. Bh3 {[%clk 0:00:37]} 47... Rg3
{[%clk 0:00:43.8]} 48. Rh1 {[%clk 0:00:36.9]} 48... Be7 {[%clk 0:00:43.2]} 49.
Kf2 {[%clk 0:00:32.7]} 49... Rg8 {[%clk 0:00:40.8]} 50. Bf1 {[%clk 0:00:29.1]}
50... h4 {[%clk 0:00:39.7]} 51. Bh3 {[%clk 0:00:23.4]} 51... Bf6 {[%clk
0:00:37.4]} 52. Bg4 {[%clk 0:00:20.7]} 52... Rg7 {[%clk 0:00:35.4]} 53. Kg2
{[%clk 0:00:20.5]} 53... Rg8 {[%clk 0:00:34.2]} 54. Kh3 {[%clk 0:00:21]} 54...
Ke7 {[%clk 0:00:34.3]} 55. Re1 {[%clk 0:00:18.2]} 55... e5 {[%clk 0:00:19.5]}
56. dxe5 {[%clk 0:00:09.7]} 56... Bxe5 {[%clk 0:00:20.4]} 57. Rd1 {[%clk
0:00:10.6]} 57... Rd8 {[%clk 0:00:17.5]} 58. Kxh4 {[%clk 0:00:08.6]} 58... Kf6
{[%clk 0:00:18]} 59. f4 {[%clk 0:00:08.6]} 59... Bc7 {[%clk 0:00:16]} 60. Kg3
{[%clk 0:00:08.8]} 60... Re8 {[%clk 0:00:13.2]} 61. Kf3 {[%clk 0:00:08.9]} 61...
Bb6 {[%clk 0:00:12.9]} 62. Re1 {[%clk 0:00:09.5]} 62... Rh8 {[%clk 0:00:10.7]}
63. Bd7 {[%clk 0:00:08.9]} 63... Ke7 {[%clk 0:00:08.3]} 64. Bxb5 {[%clk
0:00:08.9]} 64... Rh3+ {[%clk 0:00:08.2]} 65. Kg4 {[%clk 0:00:08.2]} 65... Rxe3
{[%clk 0:00:08.4]} 66. Rd1 {[%clk 0:00:08.8]} 66... Re2 {[%clk 0:00:05.7]} 67.
b4 {[%clk 0:00:09.2]} 67... Re3 {[%clk 0:00:04.8]} 68. Rxd5 {[%clk 0:00:09.5]}
68... Rxc3 {[%clk 0:00:05.3]} 69. Rd7+ {[%clk 0:00:10.2]} 69... Ke6 {[%clk
0:00:05.4]} 70. Rxb7 {[%clk 0:00:11.1]} 70... Be3 {[%clk 0:00:05.1]} 71. f5+
{[%clk 0:00:08.5]} 71... Kf6 {[%clk 0:00:05.4]} 72. Rc7 {[%clk 0:00:08.2]} 72...
Rxa3 {[%clk 0:00:03.8]} 73. Bxc4 {[%clk 0:00:08.7]} 73... Bd2 {[%clk 0:00:03.5]}
74. b5 {[%clk 0:00:08.4]} 74... Ra4 {[%clk 0:00:03.6]} 75. Rc6+ {[%clk
0:00:07.9]} 75... Ke5 {[%clk 0:00:04]} 76. f6 {[%clk 0:00:08.8]} 76... Bh6
{[%clk 0:00:03.8]} 77. f7 {[%clk 0:00:09.2]} 77... Bf8 {[%clk 0:00:03.5]} 78. b6
{[%clk 0:00:09.6]} 78... Kd4 {[%clk 0:00:03.5]} 79. Kf5 {[%clk 0:00:09.4]} 79...
Rb4 {[%clk 0:00:02.5]} 80. Ke6 {[%clk 0:00:09.2]} 80... Bc5 {[%clk 0:00:02.3]}
81. Rxc5 {[%clk 0:00:08.9]} 1-0